fUSD/lending_fUSD_20251024
["ID","MTS","AMOUNT","RATE_DAILY","PERIOD"]
[392235666,1761274253613,-500.0,0.00041369,30]
[392235667,1761274253627,-500.0,0.00041369,30]
[392235668,1761274253637,-500.0,0.00041369,30]
[392235669,1761274253647,-500.0,0.00041369,30]
[392235670,1761274253656,-500.0,0.00041369,30]
[392235671,1761274253666,-500.0,0.00041369,30]
[392235672,1761274253676,-564.19,0.00041369,30]
[392235673,1761274253685,-500.0,0.00041369,30]
[392235674,1761274253695,-780.47,0.00041369,30]
[392235675,1761274253704,-500.0,0.00041369,30]
[392235676,1761274253714,-500.0,0.00041369,30]
[392235677,1761274253723,-1042.94,0.00041369,30]
[392235678,1761274253733,-500.0,0.00041369,30]
[392235679,1761274253742,-500.0,0.00041369,30]
[392235680,1761274253752,-500.0,0.00041369,30]
[392235681,1761274253761,-1344.1,0.00041369,30]
[392235682,1761274253771,-634.29,0.00041369,30]
[392235683,1761274253780,-500.0,0.00041369,30]
[392235684,1761274253789,-609.92,0.00041369,30]
[392235685,1761274253799,-151.0,0.00041369,120]
[392235686,1761274253810,-151.0,0.00041369,120]
[392235687,1761274253819,-500.0,0.00041369,30]
[392235688,1761274253828,-500.0,0.00041369,30]
[392235689,1761274253842,-500.0,0.00041369,30]
[392235690,1761274253851,-500.0,0.00041369,30]
[392235691,1761274253861,-421.54375338,0.00041369,30]
[392235692,1761274253870,-500.0,0.00041369,30]
[392235693,1761274253879,-622.49,0.00041369,30]
[392235694,1761274253888,-835.6,0.00041369,30]
[392235695,1761274253898,-500.0,0.00041369,30]
[392235696,1761274253908,-500.0,0.00041369,30]
[392235697,1761274253917,-500.0,0.00041369,30]
[392235698,1761274253928,-1419.8,0.00041369,30]
[392235699,1761274253937,-545.23,0.00041369,30]
[392235700,1761274253947,-500.0,0.00041369,30]
[392235701,1761274253956,-504.66553683,0.00041369,30]
[392235702,1761274253966,-510.69201356,0.00041369,30]
[392235703,1761274253975,-500.0,0.00041369,12]
[392235704,1761274253985,-500.0,0.00041369,30]
[392235705,1761274253995,-500.0,0.00041369,30]
[392235706,1761274254004,-500.0,0.00041369,30]
[392235707,1761274254013,-500.0,0.00041369,30]
[392235708,1761274254023,-1093.2,0.00041369,30]
[392235709,1761274254033,-500.0,0.00041369,30]
[392235710,1761274254042,-500.0,0.00041369,30]
[392235711,1761274254052,-1452.1,0.00041369,30]
[392235712,1761274254061,-500.0,0.00041369,30]
[392235713,1761274254070,-500.0,0.00041369,30]
[392235714,1761274254079,-500.0,0.00041369,30]
[392235715,1761274254089,-878.02,0.00041369,30]
[392235716,1761274254099,-253.92479431,0.00041369,30]
[392235717,1761274254108,-500.0,0.00041369,30]
[392235718,1761274254118,-500.0,0.00041369,30]
[392235719,1761274254219,-500.0,0.00041369,30]
[392235720,1761274254229,-500.0,0.00041369,10]
[392235721,1761274254238,-857.71,0.00041369,30]
[392235722,1761274254248,-500.0,0.00041369,30]
[392235723,1761274254257,-500.0,0.00041369,30]
[392235724,1761274254266,-500.0,0.00041369,30]
[392235725,1761274254276,-500.0,0.00041369,30]
[392235726,1761274254285,-623.67209098,0.00041369,30]
[392235727,1761274254294,-500.0,0.00041369,30]
[392235728,1761274254304,-500.0,0.00041369,30]
[392235729,1761274254314,-500.0,0.00041369,30]
[392235730,1761274254323,-500.0,0.00041369,30]
[392235731,1761274254333,-500.0,0.00041369,30]
[392235732,1761274254342,-500.0,0.00041369,30]
[392235733,1761274254351,-500.0,0.00041369,30]
[392235734,1761274254360,-500.0,0.00041369,30]
[392235735,1761274254370,-500.0,0.00041369,30]
[392235736,1761274254379,-500.0,0.00041369,30]
[392235737,1761274254388,-500.0,0.00041369,30]
[392235738,1761274254398,-500.0,0.00041369,30]
[392235739,1761274254407,-500.0,0.00041369,30]
[392235740,1761274254417,-1401.8,0.00041369,30]
[392235741,1761274254427,-500.0,0.00041369,30]
[392235742,1761274254436,-696.41,0.00041369,30]
[392235743,1761274254445,-500.0,0.00041369,30]
[392235744,1761274254455,-500.0,0.00041369,30]
[392235745,1761274254465,-500.0,0.00041369,30]
[392235746,1761274254474,-500.0,0.00041369,30]
[392235747,1761274254483,-500.0,0.00041369,30]
[392235748,1761274254492,-500.0,0.00041369,30]
[392235749,1761274254500,-500.0,0.00041369,30]
[392235750,1761274254509,-1112.95,0.00041369,30]
[392235751,1761274254519,-500.0,0.00041369,30]
[392235752,1761274254528,-715.92,0.00041369,30]
[392235753,1761274254537,-500.0,0.00041369,30]
[392235754,1761274254546,-500.0,0.00041369,30]
[392235755,1761274254555,-500.0,0.00041369,30]
[392235756,1761274254564,-500.0,0.00041369,30]
[392235757,1761274254573,-500.0,0.00041369,30]
[392235758,1761274254582,-655.58,0.00041369,30]
[392235759,1761274254592,-500.0,0.00041369,30]
[392235760,1761274254601,-685.7,0.00041369,30]
[392235761,1761274254610,-500.0,0.00041369,30]
[392235762,1761274254620,-500.0,0.00041369,30]
[392235763,1761274254631,-500.0,0.00041369,30]
[392235764,1761274254640,-500.0,0.00041369,30]
[392235765,1761274254650,-500.0,0.00041369,30]
[392235766,1761274254659,-500.0,0.00041369,30]
[392235767,1761274254668,-500.0,0.00041369,30]
[392235768,1761274254677,-500.0,0.00041369,30]
[392235769,1761274254688,-688.28,0.00041369,30]
[392235770,1761274254698,-1095.77,0.00041369,30]
[392235771,1761274254708,-500.0,0.00041369,30]
[392235772,1761274254717,-883.5,0.00041369,30]
[392235773,1761274254727,-957.43,0.00041369,30]
[392235774,1761274254738,-660.61,0.00041369,30]
[392235775,1761274254747,-1014.07,0.00041369,30]
[392235776,1761274254756,-500.0,0.00041369,30]
[392235777,1761274254765,-500.0,0.00041369,30]
[392235778,1761274254774,-500.0,0.00041369,30]
[392235779,1761274254783,-500.0,0.00041369,30]
[392235780,1761274254792,-173.701867,0.00041369,120]
[392235781,1761274254801,-500.0,0.00041369,30]
[392235782,1761274254810,-546.04,0.00041369,30]
[392235783,1761274254818,-500.0,0.00041369,30]
[392235784,1761274254828,-500.0,0.00041369,30]
[392235785,1761274254838,-500.0,0.00041369,30]
[392235786,1761274254848,-500.0,0.00041369,30]
[392235787,1761274254857,-505.86392033,0.00041369,30]
[392235788,1761274254868,-500.0,0.00041369,30]
[392235789,1761274254878,-500.0,0.00041369,30]
[392235790,1761274254887,-500.0,0.00041369,30]
[392235791,1761274254899,-803.51,0.00041369,30]
[392235792,1761274254909,-500.0,0.00041369,30]
[392235793,1761274254918,-500.0,0.00041369,30]
[392235794,1761274254928,-508.08,0.00041369,30]
[392235795,1761274254937,-500.0,0.00041369,30]
[392235796,1761274254948,-500.0,0.00041369,30]
[392235797,1761274254960,-500.0,0.00041369,30]
[392235798,1761274254969,-500.0,0.00041369,30]
[392235799,1761274254979,-500.0,0.00041369,30]
[392235800,1761274254989,-500.0,0.00041369,30]
[392235801,1761274254998,-820.59,0.00041369,30]
[392235802,1761274255008,-151.0,0.00041369,120]
[392235803,1761274255017,-151.0,0.00041369,120]
[392235804,1761274255026,-500.0,0.00041369,30]
[392235805,1761274255035,-500.0,0.00041369,30]
[392235806,1761274255045,-938.87,0.00041369,30]
[392235807,1761274255054,-500.0,0.00041369,30]
[392235808,1761274255063,-500.0,0.00041369,30]
[392235809,1761274255072,-151.0,0.00041369,120]
[392235810,1761274255081,-500.0,0.00041369,30]
[392235811,1761274255091,-500.0,0.00041369,30]
[392235812,1761274255100,-151.0,0.00041369,120]
[392235813,1761274255109,-500.0,0.00041369,30]
[392235814,1761274255118,-554.84,0.00041369,30]
[392235815,1761274255127,-320.61531504,0.00041369,30]
[392235816,1761274255137,-151.0,0.00041369,120]
[392235817,1761274255146,-206.463717,0.00041369,120]
[392235818,1761274255155,-500.0,0.00041369,30]
[392235819,1761274255164,-500.0,0.00041369,30]
[392235820,1761274255173,-500.0,0.00041369,30]
[392235821,1761274255182,-522.66,0.00041369,30]
[392235822,1761274255191,-638.72,0.00041369,30]
[392235823,1761274255201,-500.0,0.00041369,30]
[392235824,1761274255210,-500.0,0.00041369,30]
[392235825,1761274255221,-500.0,0.00041369,30]
[392235826,1761274255230,-500.0,0.00041369,30]
[392235827,1761274255240,-629.32,0.00041369,30]
[392235828,1761274255249,-500.0,0.00041369,30]
[392235829,1761274255258,-706.38,0.00041369,30]
[392235830,1761274255267,-500.0,0.00041369,30]
[392235831,1761274255276,-707.52,0.00041369,30]
[392235832,1761274255285,-500.0,0.00041369,30]
[392235833,1761274255294,-500.0,0.00041369,30]
[392235834,1761274255304,-500.0,0.00041369,30]
[392235835,1761274255314,-500.0,0.00041369,30]
[392235836,1761274255324,-546.94,0.00041369,30]
[392235837,1761274255333,-1177.73,0.00041369,30]
[392235838,1761274255343,-500.0,0.00041369,30]
[392235839,1761274255353,-500.0,0.00041369,30]
[392235840,1761274255363,-500.0,0.00041369,30]
[392235841,1761274255373,-500.0,0.00041369,30]
[392235842,1761274255383,-500.0,0.00041369,30]
[392235843,1761274255393,-988.6,0.00041369,30]
[392235844,1761274255402,-479.63241538,0.00041369,30]
[392235845,1761274255412,-500.0,0.00041369,30]
[392235846,1761274255421,-500.0,0.00041369,30]
[392235847,1761274255430,-928.63,0.00041369,30]
[392235848,1761274255439,-500.0,0.00041369,30]
[392235849,1761274255448,-500.0,0.00041369,30]
[392235850,1761274255458,-500.0,0.00041369,30]
[392235851,1761274255467,-500.59520978,0.00041369,30]
[392235852,1761274255477,-587.29,0.00041369,30]
[392235853,1761274255486,-500.0,0.00041369,30]
[392235854,1761274255496,-256.52242458,0.00041369,30]
[392235855,1761274255505,-500.0,0.00041369,30]
[392235856,1761274255514,-500.0,0.00041369,30]
[392235857,1761274255523,-500.0,0.00041369,30]
[392235858,1761274255533,-500.0,0.00041369,30]
[392235859,1761274255542,-500.0,0.00041369,30]
[392235860,1761274255552,-500.0,0.00041369,30]
[392235861,1761274255561,-500.0,0.00041369,30]
[392235862,1761274255571,-500.0,0.00041369,30]
[392235863,1761274255580,-643.72,0.00041369,30]
[392235864,1761274255590,-733.15,0.00041369,30]
[392235865,1761274255599,-500.0,0.00041369,30]
[392235866,1761274255608,-698.05,0.00041369,30]
[392235867,1761274255618,-500.0,0.00041369,30]
[392235868,1761274255632,-839.55,0.00041369,30]
[392235869,1761274255641,-500.0,0.00041369,30]
[392235870,1761274255651,-156.103722,0.00041369,120]
[392235871,1761274255660,-151.0,0.00041369,120]
[392235872,1761274255670,-161.463321,0.00041369,120]
[392235873,1761274255679,-500.0,0.00041369,30]
[392235874,1761274255689,-1592.8,0.00041369,30]
[392235875,1761274255699,-500.0,0.00041369,30]
[392235876,1761274255708,-500.0,0.00041369,30]
[392235877,1761274255717,-545.43,0.00041369,30]
[392235878,1761274255727,-500.0,0.00041369,30]
[392235879,1761274255736,-500.0,0.00041369,30]
[392235880,1761274255745,-500.0,0.00041369,30]
[392235881,1761274255754,-663.56,0.00041369,30]
[392235882,1761274255763,-500.0,0.00041369,30]
[392235883,1761274255772,-1150.75,0.00041369,30]
[392235884,1761274255781,-500.0,0.00041369,30]
[392235885,1761274255790,-500.0,0.00041369,30]
[392235886,1761274255800,-500.0,0.00041369,30]
[392235887,1761274255809,-741.59,0.00041369,30]
[392235888,1761274255818,-500.0,0.00041369,30]
[392235889,1761274255827,-1685.01,0.00041369,30]
[392235890,1761274255836,-876.93,0.00041369,30]
[392235891,1761274255845,-500.0,0.00041369,30]
[392235892,1761274255854,-500.0,0.00041369,30]
[392235893,1761274255863,-500.0,0.00041369,30]
[392235894,1761274255873,-902.25,0.00041369,30]
[392235895,1761274255883,-500.0,0.00041369,30]
[392235896,1761274255892,-500.0,0.00041369,30]
[392235897,1761274255902,-151.0,0.00041369,120]
[392235898,1761274255911,-151.0,0.00041369,120]
[392235899,1761274255920,-500.0,0.00041369,30]
[392235900,1761274255931,-622.1,0.00041369,30]
[392235901,1761274255940,-500.0,0.00041369,30]
[392235902,1761274255950,-500.0,0.00041369,30]
[392235903,1761274255959,-500.0,0.00041369,30]
[392235904,1761274255969,-500.0,0.00041369,30]
[392235905,1761274255978,-610.85,0.00041369,30]
[392235906,1761274255987,-500.0,0.00041369,30]
[392235907,1761274255997,-151.0,0.00041369,120]
[392235908,1761274256006,-176.078293,0.00041369,120]
[392235909,1761274256015,-500.0,0.00041369,30]
[392235910,1761274256025,-500.0,0.00041369,2]
[392235911,1761274256036,-500.0,0.00041369,30]
[392235912,1761274256045,-596.32,0.00041369,30]
[392235913,1761274256054,-1579.82,0.00041369,30]
[392235914,1761274256064,-500.0,0.00041369,30]
[392235915,1761274256074,-500.0,0.00041369,30]
[392235916,1761274256085,-500.0,0.00041369,30]
[392235917,1761274256096,-920.06,0.00041369,30]
[392235918,1761274256107,-307.78901366,0.00041369,30]
[392235919,1761274256116,-824.73,0.00041369,30]
[392235920,1761274256126,-608.33,0.00041369,30]
[392235921,1761274256135,-500.0,0.00041369,30]
[392235922,1761274256144,-650.38,0.00041369,30]
[392235923,1761274256153,-500.0,0.00041369,30]
[392235924,1761274256165,-500.0,0.00041369,30]
[392235925,1761274256175,-500.0,0.00041369,30]
[392235926,1761274256184,-804.6,0.00041369,30]
[392235927,1761274256195,-500.0,0.00041369,30]
[392235928,1761274256204,-500.0,0.00041369,30]
[392235929,1761274256215,-500.0,0.00041369,30]
[392235930,1761274256226,-522.54,0.00041369,30]
[392235931,1761274256235,-599.98588008,0.00041369,30]
[392235932,1761274256245,-500.0,0.00041369,30]
[392235933,1761274256255,-500.0,0.00041369,30]
[392235934,1761274256265,-574.96,0.00041369,30]
[392235935,1761274256275,-500.0,0.00041369,30]
[392235936,1761274256285,-500.0,0.00041369,30]
[392235937,1761274256295,-872.69,0.00041369,30]
[392235938,1761274256304,-500.0,0.00041369,30]
[392235939,1761274256313,-500.0,0.00041369,30]
[392235940,1761274256323,-500.0,0.00041369,30]
[392235941,1761274256333,-500.0,0.00041369,30]
[392235942,1761274256343,-361.07,0.00041369,30]
[392235943,1761274256352,-612.32,0.00041369,30]
[392235944,1761274256361,-500.0,0.00041369,30]
[392235945,1761274256371,-500.0,0.00041369,30]
[392235946,1761274256380,-565.47024884,0.00041369,30]
[392235947,1761274256390,-500.0,0.00041369,30]
[392235948,1761274256400,-500.0,0.00041369,30]
[392235949,1761274256410,-500.0,0.00041369,30]
[392235950,1761274256420,-571.82,0.00041369,30]
[392235951,1761274256430,-500.0,0.00041369,30]
[392235952,1761274256439,-544.79,0.00041369,30]
[392235953,1761274256449,-566.28,0.00041369,30]
[392235954,1761274256458,-866.58,0.00041369,30]
[392235955,1761274256468,-500.0,0.00041369,30]
[392235956,1761274256477,-500.0,0.00041369,30]
[392235957,1761274256486,-500.0,0.00041369,30]
[392235958,1761274256495,-1110.19,0.00041369,30]
[392235959,1761274256505,-500.0,0.00041369,30]
[392235960,1761274256514,-440.06429264,0.00041369,30]
[392235961,1761274256525,-500.0,0.00041369,30]
[392235962,1761274256536,-1253.93,0.00041369,30]
[392235963,1761274256545,-500.0,0.00041369,30]
[392235964,1761274256554,-500.0,0.00041369,30]
[392235965,1761274256564,-500.0,0.00041369,30]
[392235966,1761274256573,-500.0,0.00041369,30]
[392235967,1761274256583,-567.51,0.00041369,30]
[392235968,1761274256592,-502.66,0.00041369,30]
[392235969,1761274256601,-964.71,0.00041369,30]
[392235970,1761274256610,-661.3,0.00041369,30]
[392235971,1761274256622,-644.6,0.00041369,30]
[392235972,1761274256632,-500.0,0.00041369,30]
[392235973,1761274256641,-500.0,0.00041369,30]
[392235974,1761274256650,-500.0,0.00041369,30]
[392235975,1761274256660,-151.0,0.00041369,120]
[392235976,1761274256669,-151.0,0.00041369,120]
[392235977,1761274256678,-500.0,0.00041369,30]
[392235978,1761274256687,-151.0,0.00041369,120]
[392235979,1761274256697,-151.0,0.00041369,120]
[392235980,1761274256706,-500.0,0.00041369,30]
[392235981,1761274256716,-151.0,0.00041369,120]
[392235982,1761274256725,-507.5,0.00041369,30]
[392235983,1761274256735,-932.16,0.00041369,30]
[392235984,1761274256745,-556.7,0.00041369,30]
[392235985,1761274256754,-500.0,0.00041369,30]
[392235986,1761274256763,-683.51,0.00041369,30]
[392235987,1761274256773,-500.0,0.00041369,30]
[392235988,1761274256782,-1138.95,0.00041369,30]
[392235989,1761274256792,-500.0,0.00041369,30]
[392235990,1761274256801,-1032.7,0.00041369,30]
[392235991,1761274256810,-500.0,0.00041369,30]
[392235992,1761274256819,-1090.89,0.00041369,30]
[392235993,1761274256829,-500.0,0.00041369,30]
[392235994,1761274256838,-305.552442,0.00041369,120]
[392235995,1761274256847,-500.0,0.00041369,30]
[392235996,1761274256857,-305.552442,0.00041369,120]
[392235997,1761274256866,-305.552442,0.00041369,120]
[392235998,1761274256875,-305.552442,0.00041369,120]
[392235999,1761274256884,-500.0,0.00041369,30]
[392236000,1761274256893,-530.21094953,0.00041369,30]
[392236001,1761274256902,-609.74,0.00041369,30]
[392236002,1761274256911,-305.552442,0.00041369,120]
[392236003,1761274256921,-305.552442,0.00041369,120]
[392236004,1761274256930,-500.0,0.00041369,30]
[392236005,1761274256939,-500.0,0.00041369,30]
[392236006,1761274256950,-305.552442,0.00041369,120]
[392236007,1761274256959,-305.552442,0.00041369,120]
[392236008,1761274256971,-500.0,0.00041369,30]
[392236009,1761274256981,-500.0,0.00041369,30]
[392236010,1761274256990,-500.0,0.00041369,30]
[392236011,1761274256999,-500.0,0.00041369,30]
[392236012,1761274257008,-500.0,0.00041369,30]
[392236013,1761274257017,-500.0,0.00041369,30]
[392236014,1761274257026,-505.1,0.00041369,30]
[392236015,1761274257035,-500.0,0.00041369,30]
[392236016,1761274257044,-500.0,0.00041369,30]
[392236017,1761274257053,-153.44352,0.00041369,120]
[392236018,1761274257062,-500.0,0.00041369,30]
[392236019,1761274257071,-612.79,0.00041369,30]
[392236020,1761274257080,-500.0,0.00041369,30]
[392236021,1761274257089,-1069.5,0.00041369,30]
[392236022,1761274257098,-500.0,0.00041369,30]
[392236023,1761274257107,-500.0,0.00041369,30]
[392236024,1761274257116,-500.0,0.00041369,30]
[392236025,1761274257124,-500.0,0.00041369,30]
[392236026,1761274257134,-500.0,0.00041369,30]
[392236027,1761274257142,-554.38,0.00041369,30]
[392236028,1761274257152,-814.56,0.00041369,30]
[392236029,1761274257161,-500.0,0.00041369,30]
[392236030,1761274257170,-500.0,0.00041369,30]
[392236031,1761274257180,-500.0,0.00041369,30]
[392236032,1761274257189,-362.05044448,0.00041369,30]
[392236033,1761274257201,-500.0,0.00041369,30]
[392236034,1761274257210,-500.0,0.00041369,30]
[392236035,1761274257221,-500.0,0.00041369,30]
[392236036,1761274257231,-500.0,0.00041369,30]
[392236037,1761274257240,-500.0,0.00041369,30]
[392236038,1761274257250,-848.81,0.00041369,30]
[392236039,1761274257259,-1019.41,0.00041369,30]
[392236040,1761274257268,-500.0,0.00041369,30]
[392236041,1761274257278,-543.34,0.00041369,30]
[392236042,1761274257288,-500.0,0.00041369,30]
[392236043,1761274257298,-500.0,0.00041369,30]
[392236044,1761274257308,-535.83,0.00041369,30]
[392236045,1761274257317,-500.0,0.00041369,30]
[392236046,1761274257327,-500.0,0.00041369,30]
[392236047,1761274257337,-500.0,0.00041369,30]
[392236048,1761274257347,-500.0,0.00041369,30]
[392236049,1761274257356,-500.0,0.00041369,30]
[392236050,1761274257365,-500.0,0.00041369,30]
[392236051,1761274257374,-500.0,0.00041369,30]
[392236052,1761274257384,-500.0,0.00041369,30]
[392236053,1761274257393,-500.0,0.00041369,30]
[392236054,1761274257402,-500.0,0.00041369,30]
[392236055,1761274257411,-412.54557271,0.00041369,30]
[392236056,1761274257420,-151.0,0.00041369,120]
[392236057,1761274257429,-180.329601,0.00041369,120]
[392236058,1761274257438,-602.83,0.00041369,30]
[392236059,1761274257447,-500.0,0.00041369,30]
[392236060,1761274257456,-1019.08,0.00041369,30]
[392236061,1761274257465,-782.9,0.00041369,30]
[392236062,1761274257474,-500.0,0.00041369,30]
[392236063,1761274257483,-500.0,0.00041369,30]
[392236064,1761274257492,-500.0,0.00041369,30]
[392236065,1761274257501,-500.0,0.00041369,30]
[392236066,1761274257510,-638.5,0.00041369,30]
[392236067,1761274257519,-511.87897642,0.00041369,30]
[392236068,1761274257528,-765.87,0.00041369,30]
[392236069,1761274257537,-500.0,0.00041369,30]
[392236070,1761274257547,-500.0,0.00041369,30]
[392236071,1761274257556,-500.0,0.00041369,30]
[392236072,1761274257565,-500.0,0.00041369,30]
[392236073,1761274257573,-500.0,0.00041369,30]
[392236074,1761274257582,-966.24,0.00041369,30]
[392236075,1761274257592,-192.24289801,0.00041369,30]
[392236076,1761274257601,-500.0,0.00041369,30]
[392236077,1761274257610,-313.24814674,0.00041369,30]
[392236078,1761274257620,-500.0,0.00041369,30]
[392236079,1761274257631,-500.0,0.00041369,30]
[392236080,1761274257640,-500.0,0.00041369,30]
[392236081,1761274257648,-500.0,0.00041369,30]
[392236082,1761274257657,-500.0,0.00041369,30]
[392236083,1761274257666,-500.0,0.00041369,30]
[392236084,1761274257676,-500.0,0.00041369,30]
[392236085,1761274257685,-500.0,0.00041369,30]
[392236086,1761274257695,-500.0,0.00041369,30]
[392236087,1761274257703,-613.44,0.00041369,30]
[392236088,1761274257712,-500.0,0.00041369,30]
[392236089,1761274257721,-500.0,0.00041369,30]
[392236090,1761274257731,-500.0,0.00041369,30]
[392236091,1761274257740,-404.204801,0.00041369,30]
[392236092,1761274257749,-500.0,0.00041369,30]
[392236093,1761274257757,-404.204801,0.00041369,30]
[392236094,1761274257766,-1262.52,0.00041369,30]
[392236095,1761274257776,-500.0,0.00041369,30]
[392236096,1761274257785,-500.0,0.00041369,30]
[392236097,1761274257793,-404.204801,0.00041369,30]
[392236098,1761274257803,-404.204801,0.00041369,30]
[392236099,1761274257812,-613.63468396,0.00041369,30]
[392236100,1761274257822,-404.204801,0.00041369,30]
[392236101,1761274257831,-404.204801,0.00041369,30]
[392236102,1761274257840,-500.0,0.00041369,30]
[392236103,1761274257849,-518.97021537,0.00041369,30]
[392236104,1761274257858,-404.204801,0.00041369,30]
[392236105,1761274257867,-404.2048,0.00041369,30]
[392236106,1761274257876,-500.0,0.00041369,30]
[392236107,1761274257885,-500.0,0.00041369,30]
[392236108,1761274257894,-500.0,0.00041369,30]
[392236109,1761274257903,-657.26,0.00041369,30]
[392236110,1761274257912,-500.0,0.00041369,30]
[392236111,1761274257921,-500.0,0.00041369,30]
[392236112,1761274257930,-500.0,0.00041369,30]
[392236113,1761274257939,-500.0,0.00041369,30]
[392236114,1761274257948,-564.05,0.00041369,30]
[392236115,1761274257957,-500.0,0.00041369,30]
[392236116,1761274257967,-500.0,0.00041369,30]
[392236117,1761274257976,-500.0,0.00041369,30]
[392236118,1761274257984,-500.0,0.00041369,30]
[392236119,1761274257993,-623.7,0.00041369,30]
[392236120,1761274258003,-500.0,0.00041369,30]
[392236121,1761274258012,-500.0,0.00041369,30]
[392236122,1761274258021,-500.0,0.00041369,30]
[392236123,1761274258030,-500.0,0.00041369,30]
[392236124,1761274258039,-880.84,0.00041369,30]
[392236125,1761274258049,-821.82,0.00041369,30]
[392236126,1761274258058,-500.0,0.00041369,30]
[392236127,1761274258067,-672.06,0.00041369,30]
[392236128,1761274258076,-500.0,0.00041369,30]
[392236129,1761274258086,-500.0,0.00041369,30]
[392236130,1761274258095,-500.0,0.00041369,30]
[392236131,1761274258104,-500.0,0.00041369,30]
[392236132,1761274258113,-200.66074879,0.00041369,30]
[392236133,1761274258122,-500.0,0.00041369,30]
[392236134,1761274258132,-996.18,0.00041369,30]
[392236135,1761274258141,-613.96,0.00041369,30]
[392236136,1761274258150,-774.73,0.00041369,30]
[392236137,1761274258159,-500.0,0.00041369,30]
[392236138,1761274258168,-500.0,0.00041369,30]
[392236139,1761274258179,-935.55,0.00041369,30]
[392236140,1761274258188,-500.0,0.00041369,30]
[392236141,1761274258197,-500.0,0.00041369,30]
[392236142,1761274258206,-500.0,0.00041369,30]
[392236143,1761274258217,-774.08,0.00041369,30]
[392236144,1761274258226,-500.0,0.00041369,30]
[392236145,1761274258235,-529.91,0.00041369,30]
[392236146,1761274258361,-500.0,0.00041369,30]
[392236147,1761274258370,-500.0,0.00041369,30]
[392236148,1761274258380,-604.43,0.00041369,30]
[392236149,1761274258389,-500.0,0.00041369,30]
[392236150,1761274258399,-584.61,0.00041369,30]
[392236151,1761274258408,-151.000009,0.00041369,120]
[392236152,1761274258418,-707.97,0.00041369,30]
[392236153,1761274258427,-500.0,0.00041369,30]
[392236154,1761274258436,-514.87,0.00041369,30]
[392236155,1761274258446,-500.0,0.00041369,30]
[392236156,1761274258455,-500.0,0.00041369,30]
[392236157,1761274258464,-500.0,0.00041369,30]
[392236158,1761274258474,-1002.32,0.00041369,30]
[392236159,1761274258484,-500.0,0.00041369,30]
[392236160,1761274258494,-500.0,0.00041369,30]
[392236161,1761274258503,-500.0,0.00041369,30]
[392236162,1761274258513,-500.0,0.00041369,30]
[392236163,1761274258523,-500.0,0.00041369,30]
[392236164,1761274258533,-1083.67,0.00041369,30]
[392236165,1761274258543,-732.23,0.00041369,30]